[Event "Vojvodina Open 2024-A 2024"]
[Site "Novi Sad"]
[Date "2024.06.25"]
[Round "2.1"]
[White "Safarli, Eltaj"]
[Black "Antic, Dejan"]
[Result "1-0"]
[ECO "C08"]
[WhiteElo "2595"]
[BlackElo "2353"]
[Annotator "TA"]
[PlyCount "101"]
[EventDate "2024.06.03"]
[EventType "swiss"]
[EventCountry "SRB"]
[SourceTitle "playchess.com"]
[Source "ChessBase"]
[SourceQuality "1"]
[TimeControl "40/5400+30:900+30"]

{[%evp 20,101,28,31,23,29,17,0,38,32,35,29,24,26,27,22,20,26,32,35,27,27,36,29,37,21,16,12,17,19,31,34,31,14,19,0,24,19,23,8,36,25,28,0,36,26,21,21,41,37,32,35,42,38,58,60,90,89,85,91,78,78,75,73,122,114,108,118,147,127,134,118,128,130,120,103,151,149,173,146,163,162,194,173]} 1. e4 {[%emt 0:00:30]} e6 {[%emt 0:00:14]} 2. d4 {[%emt 0:00:36]} d5 {[%emt 0:00:10]} 3. Nd2 {[%emt 0:00:05]} c5 {[%emt 0:00:40]} 4. Ngf3 {[%emt 0:00:15]} Nf6 {[%emt 0:00:22]} 5. exd5 {[%emt 0:01:43]} exd5 {[%emt 0:00:19]} 6. Bb5+ {[%emt 0:00:05]} Bd7 {[%emt 0:00:09]} 7. Bxd7+ {[%emt 0:00:14]} Nbxd7 {[%emt 0:00:10][%cal Bb8d7,Bd7c5,Bc5e4][%mdl 32]} 8. O-O {[%emt 0:00:06]} Be7 {[%emt 0:00:11]} 9. dxc5 {[%emt 0:00:20]} Nxc5 {[%emt 0:00:15]} 10. Nb3 {[%emt 0:00:20]} Nce4 {[%emt 0:00:21]} 11. Nfd4 {[%emt 0:00:45]} Nd6 {[%emt 0:01:11]} 12. Re1 {[%emt 0:05:19]} O-O {[%emt 0:00:50]} 13. Nc5 {[%emt 0:05:29][%cal Oc5b7]} Rc8 {[%emt 0:06:37] The position is equal.} 14. Nd3 {[%emt 0:00:30]} Re8 {[%emt 0:08:22]} 15. c3 {[%emt 0:00:57]} Bf8 {[%emt 0:04:43]} 16. Bg5 {[%emt 0:11:28]} Rxe1+ {[%emt 0:08:44]} 17. Qxe1 {[%emt 0:00:12]} Nde4 {[%emt 0:00:30]} 18. Be3 {[%emt 0:09:24]} Qd7 {[%emt 0:09:18]} 19. f3 {[%emt 0:06:03]} Nc5 {[%emt 0:01:18]} 20. Qd2 {[%emt 0:02:17]} h6 {[%emt 0:04:25]} 21. Bf2 {[%emt 0:02:51]} a6 {[%emt 0:08:31]} 22. Rd1 {[%emt 0:04:05]} Nxd3 {[%emt 0:04:26]} 23. Qxd3 {[%emt 0:00:06]} Qa4 {[%emt 0:00:31]} 24. a3 {[%emt 0:03:18]} Bc5 {[%emt 0:04:21]} 25. Qc2 {[%emt 0:04:21]} Qd7 {[%emt 0:06:37]} 26. h3 {[%emt 0:07:40]} Re8 {[%emt 0:00:59]} 27. g4 {[%emt 0:02:35]} Re5 {[%emt 0:04:34]} 28. Kg2 {[%emt 0:02:59]} Qe8 {[%emt 0:03:53]} 29. Rd2 {[%emt 0:00:28]} Qd7 {[%emt 0:00:54]} 30. Qd3 {[%emt 0:04:48]} Qe8 {[%emt 0:02:04]} 31. Qc2 {[%emt 0:02:43]} Qd7 {[%emt 0:00:13]} 32. Bg3 {[%emt 0:02:51]} Re8 {[%emt 0:02:39]} 33. Qd3 {[%emt 0:06:08]} Bd6 {[%emt 0:01:48]} 34. Nf5 {[%emt 0:08:24]} Bxg3 {[%emt 0:00:42]} 35. Nxg3 {[%emt 0:00:07]} Qc7 {[%emt 0:01:15]} 36. Qd4 {[%emt 0:01:02]} Qe7 {[%emt 0:04:43]} 37. h4 {[%emt 0:02:05]} Qe5 {[%emt 0:04:11]} 38. Qxe5 {[%emt 0:02:42]} Rxe5 $16 {[%emt 0:00:05][%mdl 4096] Endgame. KRN-KRN} 39. Rd4 {[%emt 0:01:19]} g6 {[%emt 0:03:06]} 40. Kf2 {[%emt 0:00:00] Inhibits Re1.} Kf8 {[%emt 0:00:00]} 41. Nf1 {[%emt 0:05:10]} g5 {[%emt 0:07:10]} (41... Ne8 $142) 42. hxg5 {[%emt 0:01:42]} hxg5 {[%emt 0:00:06]} 43. Ne3 {[%emt 0:00:05]} Ke8 {[%emt 0:01:15]} 44. Rb4 {[%emt 0:00:28]} b5 {[%emt 0:00:30]} 45. a4 {[%emt 0:00:21]} bxa4 {[%emt 0:00:11]} 46. Rxa4 {[%emt 0:01:27]} Re6 {[%emt 0:00:20]} 47. Rb4 {[%emt 0:00:23]} Kd8 {[%emt 0:05:30]} ({Black should try} 47... Kf8 48. Rb8+ Re8) 48. Rb8+ {[%emt 0:01:36] White is clearly better.} Kc7 {[%emt 0:00:34]} 49. Rf8 {[%emt 0:00:06]} Re7 {[%emt 0:00:16]} 50. Nf5 {[%emt 0:00:25]} Rd7 {[%emt 0:00:07]} 51. Ke3 {[%emt 0:01:20] Weighted Error Value: White=0.05 (flawless) /Black=0.10 (very precise) .  Mistake:       	---       	Black=2      Inaccurate:     	---       	Black=3      OK:         	White=13    	Black=16     Best:        	White=2     	Black=3} 1-0

[Event "Vojvodina Open 2024-A 2024"]
[Site "Novi Sad"]
[Date "2024.06.25"]
[Round "2.2"]
[White "Popovic, Milan S"]
[Black "Narayanan, Srinath"]
[Result "0-1"]
[ECO "B27"]
[WhiteElo "2374"]
[BlackElo "2533"]
[Annotator "TA"]
[PlyCount "74"]
[EventDate "2024.06.03"]
[EventType "swiss"]
[EventCountry "SRB"]
[SourceTitle "playchess.com"]
[Source "ChessBase"]
[SourceQuality "1"]
[TimeControl "40/5400+30:900+30"]

{[%evp 14,74,22,16,20,0,12,25,66,27,74,72,73,46,85,81,84,84,81,72,113,93,124,138,125,130,120,124,135,134,117,0,0,0,0,-31,0,0,0,0,0,0,0,0,0,-71,-73,-141,-141,-140,-95,-106,-75,-65,0,0,0,-377,-347,-1186,-1178,-29986,-29987]} 1. e4 {[%emt 0:00:03]} c6 {[%emt 0:00:16]} 2. Nf3 {[%emt 0:00:29]} d5 {[%emt 0:00:08]} 3. d3 {[%emt 0:00:04]} g6 {[%emt 0:04:24]} 4. Nbd2 {[%emt 0:00:48]} Bg7 {[%emt 0:00:10]} 5. d4 {[%emt 0:00:31]} Bg4 {[%emt 0:04:43]} 6. e5 {[%emt 0:09:43]} c5 {[%emt 0:02:50]} 7. c3 {[%emt 0:06:16]} cxd4 {[%emt 0:09:07]} 8. cxd4 {[%emt 0:02:50]} Nc6 {[%emt 0:00:34]} 9. Qb3 {[%emt 0:33:11]} Bc8 {[%emt 0:08:59]} 10. Bb5 {[%emt 0:01:57]} Nh6 {[%emt 0:00:31] White has an edge.} 11. O-O {[%emt 0:03:28]} O-O {[%emt 0:00:14]} (11... Bd7 $11) 12. Bxc6 $16 {[%emt 0:12:45]} bxc6 {[%emt 0:00:06]} 13. Re1 {[%emt 0:00:04]} f6 {[%emt 0:04:12]} 14. Qc3 {[%emt 0:11:48]} fxe5 {[%emt 0:06:23]} 15. dxe5 {[%emt 0:05:36][%cal Od2b3]} Qb6 {[%emt 0:01:02]} 16. Nb3 {[%emt 0:01:20]} Ng4 {[%emt 0:03:21]} 17. Nc5 {[%emt 0:03:48]} Rxf3 {[%emt 0:01:51]} 18. gxf3 {[%emt 0:02:07]} Nh6 {[%emt 0:00:15]} 19. Bxh6 {[%emt 0:01:41]} Bxh6 {[%emt 0:00:10]} 20. e6 {[%emt 0:00:41]} Bg7 {[%emt 0:13:14] Prevents Nd7} 21. Qc2 {[%emt 0:00:02]} Qxb2 {[%emt 0:00:20]} 22. Qxb2 {[%emt 0:00:56]} (22. Rac1 $1 $16) 22... Bxb2 $11 {[%emt 0:00:04]} 23. Rab1 {[%emt 0:00:05]} Ba3 $36 {[%emt 0:00:12][%mdl 2048] Black has some pressure.} 24. Nb7 {[%emt 0:01:28]} (24. Nd3 $5) 24... a5 {[%emt 0:02:54] And now ...Bb4 would win.} 25. Nxa5 {[%emt 0:00:22]} Rxa5 {[%emt 0:00:08]} 26. Rb8 {[%emt 0:00:01]} Kg7 {[%emt 0:01:04]} 27. Rxc8 {[%emt 0:00:02][%mdl 4096] Endgame. KRR-KRB} c5 {[%emt 0:00:32]} 28. Re5 {[%emt 0:01:44]} c4 {[%emt 0:00:11][%cal Oc4c3]} 29. Kf1 {[%emt 0:00:37]} (29. Re2 $11) 29... Bd6 $17 {[%emt 0:06:17][%csl LRa2,LRe5]} 30. Re2 {[%emt 0:00:04]} ({White should play} 30. Re1) 30... Bxh2 {[%emt 0:00:13]} 31. Rd8 {[%emt 0:00:23][%cal Oa2a4]} Bf4 {[%emt 0:01:09][%mdl 1024] Black has strong compensation.} 32. Rd7 {[%emt 0:00:38]} Kf6 {[%emt 0:00:48]} 33. Rd8 {[%emt 0:00:22]} Rc5 {[%emt 0:00:27]} ({Better is} 33... Bh6 $15 34. Rh8 g5) 34. Rf8+ $11 {[%emt 0:00:33]} Kg5 {[%emt 0:00:02] Strongly threatening ...h5.} 35. Ke1 $2 {[%emt 0:00:41][%mdl 8192] [#]} (35. Re1 $1 $11 {and White stays safe.} d4 36. Ke2 (36. Re4 c3 $19) 36... d3+ 37. Kd1) 35... d4 $1 $19 {[%emt 0:02:02]} 36. Re4 $2 {[%emt 0:00:05] [#]} (36. Kd1 Rb5 37. Rxf4 Kxf4 38. Re4+ Kf5 (38... Kxf3 $2 39. Rxd4 Re5 40. Kd2 $19) 39. Rxd4) 36... c3 $1 {[%emt 0:00:38] ( -> ...c2)} 37. Rexf4 {[%emt 0:00:46]} (37. Rfxf4 c2) 37... c2 {[%emt 0:00:09] Weighted Error Value: White=0.67/Black=0.12 (very precise) .  Loses game:     	White=1     	---        Mistake:       	White=4     	Black=2      Inaccurate:     	White=4     	Black=5      OK:         	White=8     	Black=6      Best:        	White=4     	Black=4      Strong:       	---       	Black=2} 0-1

[Event "Vojvodina Open 2024-A 2024"]
[Site "Novi Sad"]
[Date "2024.06.25"]
[Round "2.3"]
[White "Bryakin, Mikhail"]
[Black "Manish Anto Cristiano F"]
[Result "1/2-1/2"]
[ECO "D43"]
[WhiteElo "2469"]
[BlackElo "2307"]
[Annotator "ChessBase"]
[PlyCount "109"]
[EventDate "2024.06.03"]
[EventType "swiss"]
[EventCountry "SRB"]
[SourceTitle "playchess.com"]
[Source "ChessBase"]
[SourceQuality "1"]
[TimeControl "40/5400+30:900+30"]

1. d4 {[%emt 0:00:02]} Nf6 {[%emt 0:03:56]} 2. c4 {[%emt 0:00:22]} e6 {[%emt 0:01:37]} 3. Nf3 {[%emt 0:00:05]} d5 {[%emt 0:00:33]} 4. Bg5 {[%emt 0:00:03]} h6 {[%emt 0:02:02]} 5. Bxf6 {[%emt 0:00:59]} Qxf6 {[%emt 0:00:06]} 6. Nc3 {[%emt 0:00:20]} Bb4 {[%emt 0:02:02]} 7. e3 {[%emt 0:00:32]} O-O {[%emt 0:00:15]} 8. Qb3 {[%emt 0:00:16]} Bxc3+ {[%emt 0:01:02]} 9. Qxc3 {[%emt 0:00:24]} dxc4 {[%emt 0:04:25]} 10. Bxc4 {[%emt 0:01:12]} c5 {[%emt 0:00:47]} 11. O-O {[%emt 0:01:34]} Bd7 {[%emt 0:07:57]} 12. Ne5 {[%emt 0:02:34]} cxd4 {[%emt 0:00:13]} 13. Qxd4 {[%emt 0:00:18]} Be8 {[%emt 0:02:25]} 14. Bd3 {[%emt 0:05:59]} Nc6 {[%emt 0:02:16]} 15. Qe4 {[%emt 0:07:43]} g6 {[%emt 0:01:12]} 16. f4 {[%emt 0:01:19]} Rd8 {[%emt 0:02:23]} 17. Rad1 {[%emt 0:12:45]} Nxe5 {[%emt 0:09:03]} 18. fxe5 {[%emt 0:01:15]} Qg5 {[%emt 0:01:16]} 19. h4 {[%emt 0:00:15]} Qh5 {[%emt 0:02:46]} 20. Be2 {[%emt 0:02:27]} Bc6 {[%emt 0:01:08]} 21. Bxh5 {[%emt 0:19:27]} Bxe4 {[%emt 0:01:36]} 22. Bf3 {[%emt 0:00:05]} Bd5 {[%emt 0:02:51]} 23. b3 {[%emt 0:06:18]} Rd7 {[%emt 0:09:27]} 24. Rf2 {[%emt 0:06:06]} Rfd8 {[%emt 0:02:13]} 25. Rfd2 {[%emt 0:06:14]} Kf8 {[%emt 0:00:14]} 26. Kf2 {[%emt 0:01:52]} Ke7 {[%emt 0:00:20]} 27. Rd4 {[%emt 0:01:07]} Bxf3 {[%emt 0:04:10]} 28. Kxf3 {[%emt 0:05:47]} Rxd4 {[%emt 0:01:54]} 29. Rxd4 {[%emt 0:06:43]} Rd5 {[%emt 0:05:04]} 30. Rc4 {[%emt 0:02:41]} Kd7 {[%emt 0:00:25]} 31. Ke4 {[%emt 0:00:33]} Rd2 {[%emt 0:07:24]} 32. Rd4+ {[%emt 0:01:50]} Rxd4+ {[%emt 0:00:06]} 33. exd4 {[%emt 0:02:30]} Kc6 {[%emt 0:00:34]} 34. b4 {[%emt 0:00:42]} Kc7 {[%emt 0:02:04]} 35. d5 {[%emt 0:01:01]} exd5+ {[%emt 0:05:31]} 36. Kxd5 {[%emt 0:00:09]} Kd7 {[%emt 0:00:59]} 37. g4 {[%emt 0:03:24]} g5 {[%emt 0:04:02]} 38. hxg5 {[%emt 0:00:58]} hxg5 {[%emt 0:00:02]} 39. b5 {[%emt 0:01:29]} Ke7 {[%emt 0:01:47]} 40. Ke4 {[%emt 0:00:00]} Ke6 {[%emt 0:00:00]} 41. Kd4 {[%emt 0:04:53]} Ke7 {[%emt 0:02:53]} 42. Kd5 {[%emt 0:02:29]} Kd7 {[%emt 0:01:27]} 43. Ke4 {[%emt 0:09:06]} Ke6 {[%emt 0:00:17]} 44. b6 {[%emt 0:00:28]} axb6 {[%emt 0:01:04]} 45. a4 {[%emt 0:01:08]} b5 {[%emt 0:02:08]} 46. axb5 {[%emt 0:00:09]} b6 {[%emt 0:00:04]} 47. Kd4 {[%emt 0:00:03]} Ke7 {[%emt 0:00:15]} 48. Ke3 {[%emt 0:00:05]} Kd7 {[%emt 0:01:18]} 49. Kd3 {[%emt 0:00:09]} Ke7 {[%emt 0:04:11]} 50. Kc3 {[%emt 0:00:16]} Kd7 {[%emt 0:01:06]} 51. Kc4 {[%emt 0:00:12]} Ke6 {[%emt 0:00:30]} 52. Kd4 {[%emt 0:00:05]} Ke7 {[%emt 0:00:05]} 53. Kd3 {[%emt 0:00:18]} Kd7 {[%emt 0:00:28]} 54. Kc4 {[%emt 0:00:08]} Ke6 {[%emt 0:00:16]} 55. Kd4 {[%emt 0:04:11]} 1/2-1/2

[Event "Vojvodina Open 2024-A 2024"]
[Site "Novi Sad"]
[Date "2024.06.25"]
[Round "2.4"]
[White "Rohit S"]
[Black "Kalinin, Alexander"]
[Result "0-1"]
[ECO "B11"]
[WhiteElo "2359"]
[BlackElo "2459"]
[Annotator "TA"]
[PlyCount "62"]
[EventDate "2024.06.03"]
[EventType "swiss"]
[EventCountry "SRB"]
[SourceTitle "playchess.com"]
[Source "ChessBase"]
[SourceQuality "1"]
[TimeControl "40/5400+30:900+30"]

{[%evp 10,62,29,29,31,33,36,28,29,3,2,0,0,-6,0,-54,-54,-45,-51,-76,-81,-89,-85,-96,-76,-89,-92,-189,-138,-129,-51,-56,-30,-467,-502,-490,-505,-1488,-1485,-4886,-2652,-29987,-29988,-29988,29987,405,396,-573,416,-2,29998,-29990,-29991,-29991,-29992]} 1. e4 {[%emt 1:31:00]} c6 {[%emt 0:07:55]} 2. Nc3 {[%emt 0:00:00]} d5 {[%emt 0:00:18]} 3. Nf3 {[%emt 0:00:00]} dxe4 {[%emt 0:01:38]} 4. Nxe4 {[%emt 0:00:00]} Nf6 {[%emt 0:00:02]} 5. Qe2 {[%emt 0:00:00]} Nxe4 {[%emt 0:00:37]} 6. Qxe4 {[%emt 0:00:00]} Nd7 {[%emt 0:00:27]} 7. d4 {[%emt 0:00:00]} Nf6 {[%emt 0:00:12]} 8. Qd3 {[%emt 0:00:00]} g6 {[%emt 0:02:37] White has an edge.} 9. Qb3 {[%emt 0:00:00]} Bg7 {[%emt 0:03:16]} 10. Bc4 {[%emt 0:00:00]} O-O {[%emt 0:00:07]} 11. a4 {[%emt 0:00:00]} Bg4 {[%emt 0:10:47]} 12. Be2 {[%emt 0:00:00]} (12. Ng5 $1 $11 e6 13. h3) 12... Bxf3 $15 {[%emt 0:17:23]} 13. Bxf3 {[%emt 0:00:00]} Qxd4 {[%emt 0:00:15]} 14. Qxb7 {[%emt 0:00:00][%cal Oe1g1]} Qe5+ $1 {[%emt 0:00:12]} 15. Kf1 {[%emt 0:00:00]} Qf5 $1 {[%emt 0:05:07]} 16. Qxc6 {[%emt 0:00:00][%cal Oc2c3]} Rac8 {[%emt 0:02:58]} 17. Qb5 {[%emt 0:00:00]} e5 {[%emt 0:05:27]} (17... Rxc2 18. Qxf5 gxf5 19. Be3 $15) (17... Qxb5+ $6 18. axb5 Rxc2 19. g3 $11) 18. Be2 {[%emt 0:00:00]} (18. c3 $17) 18... Rxc2 {[%emt 0:03:13]} (18... Qxc2 19. g3 $17) (18... Rfd8 $19 19. c3 Ne4) 19. Be3 $17 {[%emt 0:00:00][%cal Oe2d3]} Ng4 {[%emt 0:05:05] Black is more active.} (19... Rd8 $1 $17 {[%cal Og7h6] ...Bh6! would now be deadly.} 20. Kg1 e4 21. Qxf5 gxf5) 20. Bxa7 $15 {[%emt 0:00:00]} Rfc8 $36 {[%emt 0:08:40][%mdl 2048] Black fights for an advantage.} 21. g3 $2 {[%emt 0:00:00][%mdl 8192]} (21. Kg1 $11 {and White has nothing to worry.}) 21... Qe4 $19 {[%emt 0:06:12][%cal Re4h1]} 22. f3 {[%emt 0:00:00]} Qa8 {[%emt 0:00:22][%cal Oe5e4] Strongly threatening ...e4!} 23. Bb6 {[%emt 0:00:08] [#]} (23. Rd1 $142 Qxa7 (23... e4 $2 24. fxg4 Qxa7 25. Qg5 $19) 24. fxg4) 23... e4 $1 {[%emt 0:04:19]} 24. fxg4 {[%emt 0:00:46]} (24. Qa6 exf3) 24... e3 $1 {[%emt 0:00:05]} (24... Bxb2 $2 25. Rd1 $18 (25. Kg2 Bxa1 26. Rxa1 Qc6 $11)) 25. Kg1 {[%emt 0:01:19]} Rc1+ {[%emt 0:03:15]} (25... Bxb2 $2 26. Rf1 $18) 26. Rxc1 {[%emt 0:00:39] [#]} Rc4 $4 {[%emt 0:13:01][%mdl 8192] [#]} 27. Rc2 Rxc2 $18 {[%emt 0:00:00]} 28. Bf1 $4 {[%emt 0:00:35][%mdl 8192]} (28. Bxe3 $18 {was the only winning move.} Rxb2 29. Qd3) 28... Rc1 $4 {[%emt 0:00:00][%mdl 8192]} (28... Qe4 $19 29. h4 (29. Qd3 $2 Rg2+ 30. Bxg2 Qxd3 $19) 29... e2 (29... Bxb2 $2 {perishes.} 30. Rh2 $18) (29... Rxb2 $2 30. Qc4 $19) 30. Bxe2 Rxe2) 29. Bc5 $2 {[%emt 0:10:33]} ({White has to play} 29. Bxe3 $18 Rb1 30. Qc4) 29... Qf3 $2 {[%mdl 8192] [#]} (29... e2 $11 30. Qxe2 Rxc5) 30. Bxe3 $4 {[%emt 0:00:00][%mdl 8192]} Qxe3+ {[%emt 0:00:00]} 31. Kg2 {[%emt 0:00:00]} Rc2+ {[%emt 0:00:00] Black used his chance.   Weighted Error Value: White=1.88/Black=0.62.  Loses game:     	White=1     	Black=1      Missed win:     	White=2     	Black=1      Mistake:       	White=3     	Black=2      Inaccurate:     	White=2     	---        OK:         	White=3     	Black=8      Best:        	White=2     	Black=3      Strong:       	---       	Black=2} 0-1

[Event "Vojvodina Open 2024-A 2024"]
[Site "Novi Sad"]
[Date "2024.06.25"]
[Round "2.5"]
[White "Harshavardhan G B"]
[Black "Rupesh Reddy Y"]
[Result "1/2-1/2"]
[ECO "D37"]
[WhiteElo "2433"]
[BlackElo "1807"]
[Annotator "TA"]
[PlyCount "106"]
[EventDate "2024.06.03"]
[EventType "swiss"]
[EventCountry "SRB"]
[SourceTitle "playchess.com"]
[Source "ChessBase"]
[SourceQuality "1"]
[TimeControl "40/5400+30:900+30"]

{[%evp 13,106,16,37,16,8,5,8,0,13,0,1,5,9,1,7,0,27,35,24,27,25,28,43,39,39,21,32,0,0,0,0,0,0,-9,-6,-34,-28,-27,0,0,0,0,0,0,0,0,0,0,0,0,0,0,0,0,0,0,-8,-6,26,54,40,35,34,0,0,0,0,0,0,0,0,0,0,0,0,0,0,0,0,-25,0,0,0,0,0,0,0,0,0,0,0,0,0,-36,574]} 1. d4 {[%emt 0:01:07]} d5 {[%emt 0:00:29]} 2. c4 {[%emt 0:00:34]} e6 {[%emt 0:00:06]} 3. Nc3 {[%emt 0:00:26]} Be7 {[%emt 0:00:11]} 4. Nf3 {[%emt 0:00:20]} Nf6 {[%emt 0:00:13]} 5. Bf4 {[%emt 0:00:16]} O-O {[%emt 0:00:14]} 6. e3 {[%emt 0:00:14]} a6 {[%emt 0:00:05]} 7. c5 {[%emt 0:02:18]} Nc6 {[%emt 0:05:37]} 8. Ne5 {[%emt 0:02:56]} Nxe5 {[%emt 0:00:14]} 9. Bxe5 {[%emt 0:00:14]} Nd7 {[%emt 0:06:17] [#] Threatens to win with ...Nxe5.} 10. Bg3 {[%emt 0:00:10] The position is equal.} c6 {[%emt 0:00:15][%cal Oe6e5]} 11. Bd3 {[%emt 0:03:16]} e5 {[%emt 0:01:27]} 12. O-O {[%emt 0:00:58]} Re8 {[%emt 0:01:50]} 13. b4 {[%emt 0:01:30]} Bf6 {[%emt 0:00:24]} 14. Ne2 {[%emt 0:02:38]} Nf8 {[%emt 0:00:16][%cal Bd7f8,Bf8h7,Bh7f6][%mdl 32]} 15. dxe5 {[%emt 0:04:18]} Bxe5 {[%emt 0:00:34]} 16. Bxe5 {[%emt 0:00:38]} Rxe5 {[%emt 0:00:06]} 17. Nd4 {[%emt 0:00:08]} Qc7 {[%emt 0:01:56]} 18. Qd2 {[%emt 0:05:32]} h6 {[%emt 0:03:39]} 19. Rae1 {[%emt 0:01:52]} Nh7 {[%emt 1:16:07]} 20. f4 {[%emt 0:04:18]} Re8 {[%emt 0:00:00]} 21. e4 {[%emt 0:01:24]} dxe4 {[%emt 0:00:00]} 22. Bxe4 {[%emt 0:01:14]} Nf6 {[%emt 0:00:00]} 23. Bb1 {[%emt 0:00:26]} Bd7 {[%emt 0:00:00]} 24. Nf3 {[%emt 0:05:20]} Be6 {[%emt 0:00:00]} 25. Ne5 {[%emt 0:01:18]} Rad8 {[%emt 0:00:00]} 26. Qc2 {[%emt 0:02:10]} a5 {[%emt 0:00:00]} 27. a3 {[%emt 0:00:40]} axb4 {[%emt 0:00:00]} 28. axb4 {[%emt 0:00:12]} Rd4 {[%emt 0:00:00]} 29. Qc3 {[%emt 0:06:18]} Rdd8 {[%emt 0:00:00]} 30. h3 {[%emt 0:04:10]} Qc8 {[%emt 0:00:00]} 31. Qc2 {[%emt 0:01:16]} Rd4 {[%emt 0:00:00]} 32. f5 {[%emt 0:10:42]} Bd5 {[%emt 0:00:00]} 33. Qc3 {[%emt 0:01:57]} Rh4 {[%emt 0:00:00]} 34. g4 {[%emt 0:05:17]} Qc7 {[%emt 0:00:00][%cal Oe8e5]} 35. Qg3 $132 {[%emt 0:01:58][%mdl 2048] White puts up resistance} Nd7 {[%emt 0:00:00]} 36. Qxh4 {[%emt 0:02:34]} Nxe5 {[%emt 0:00:00]} 37. Re3 {[%emt 0:21:40][%cal Be1e3,Be3a3,Ba3a1,Ba1a8][%mdl 32] Prevents Nf3+. f6 would now be deadly.} f6 $1 {[%emt 0:00:00]} 38. Qg3 {[%emt 0:00:53]} b6 {[%emt 0:00:00]} 39. Be4 {[%emt 0:01:11]} bxc5 {[%emt 0:00:00]} 40. bxc5 {[%emt 0:00:00]} Rd8 {[%emt 0:00:00]} 41. Bxd5+ {[%emt 0:09:40]} Rxd5 {[%emt 0:00:00]} 42. Ra3 {[%emt 0:00:10]} Qe7 {[%emt 0:00:00]} 43. Qc3 {[%emt 0:00:35]} Nd3 {[%emt 0:00:00]} 44. Rf3 {[%emt 0:02:25][%cal Bf1f3,Bf3e3,Be3e8][%mdl 32]} Nxc5 {[%emt 0:00:00]} 45. Ra1 {[%emt 0:02:08]} Qd6 {[%emt 0:00:00]} 46. Re3 {[%emt 0:01:33]} Rd2 {[%emt 0:00:00] ( -> ...Qh2+)} 47. Ra8+ {[%emt 0:05:17]} Kh7 {[%emt 0:00:00]} 48. Qxd2 {[%emt 0:00:12]} Qxd2 {[%emt 0:00:00]} 49. Ree8 {[%emt 0:00:08][%csl Ga8][%cal Re8h8] Really sharp!} Qd4+ {[%emt 0:00:00]} 50. Kh1 {[%emt 0:00:21][%csl Ga8][%cal Re8h8]} Qd5+ {[%emt 0:00:00]} 51. Kg1 $1 {[%emt 0:00:07][%csl Ga8][%cal Re8h8]} Qd1+ {[%emt 0:00:00]} 52. Kg2 {[%emt 0:00:12][%csl Ga8][%cal Re8h8]} Qd5+ {[%emt 0:00:00]} 53. Kg3 {[%emt 0:04:49][%csl Ga8][%cal Re8h8] [#]} Qe5+ $2 {[%emt 0:32:00][%mdl 40960] Weighted Error Value: White=0.05 (flawless) /Black=0.04 (flawless) .  Loses game:     	---       	Black=1      Inaccurate:     	White=4     	Black=3      OK:         	White=17    	Black=21     Best:        	---       	Black=1      Strong:       	White=1     	Black=1     . An unexpected result.} 1/2-1/2